fUST/lending_fUST_20240812
["ID","MTS","AMOUNT","RATE_DAILY","PERIOD"]
[334677993,1723465844339,-501.04370393,0.00020821,3]
[334677994,1723465844349,-507.01067187,0.00020821,3]
[334677995,1723465844359,-500.0,0.00020821,3]
[334677996,1723465844371,-500.0,0.00020821,3]
[334677997,1723465844380,-500.0,0.00020821,3]
[334677998,1723465844389,-2475.2,0.00020821,3]
[334677999,1723465844399,-500.0,0.00020821,3]
[334678000,1723465844409,-753.96,0.00020821,3]
[334678001,1723465844419,-502.68630497,0.00020821,3]
[334678002,1723465844430,-500.0,0.00020821,3]
[334678003,1723465844441,-729.96,0.00020821,3]
[334678004,1723465844450,-500.0,0.00020821,3]
[334678005,1723465844461,-500.0,0.00020821,3]
[334678006,1723465844470,-500.0,0.00020821,3]
[334678007,1723465844480,-500.0,0.00020821,3]
[334678008,1723465844490,-500.0,0.00020821,3]
[334678009,1723465844501,-500.0,0.00020821,3]
[334678010,1723465844511,-500.0,0.00020821,3]
[334678011,1723465844521,-500.0,0.00020821,3]
[334678012,1723465844530,-500.0,0.00020821,3]
[334678013,1723465844542,-959.94,0.00020821,3]
[334678014,1723465844553,-500.0,0.00020821,3]
[334678015,1723465844563,-500.0,0.00020821,3]
[334678016,1723465844573,-500.0,0.00020821,3]
[334678017,1723465844582,-564.08093968,0.00020821,3]
[334678018,1723465844592,-1009.6,0.00020821,3]
[334678019,1723465844603,-251.30475425,0.00020821,3]
[334678020,1723465844612,-11818.01,0.00020821,3]
[334678021,1723465844624,-1576.81,0.00020821,3]
[334678022,1723465844634,-10921.18318556,0.00020821,3]
[334678023,1723465844995,-896.82681444,0.00020821,3]
[334678024,1723465845006,-500.0,0.00020821,3]
[334678025,1723465845016,-5096.19832159,0.00020821,3]
[334678026,1723465845029,-369.06255427,0.00020821,3]
[334678036,1723465846233,-1909.25818416,0.00020821,3]
[334678037,1723465846244,-2037.35885071,0.00020821,3]
[334678038,1723465846256,-2135.67124547,0.00020821,3]
[334678039,1723465847088,153.0,0.00016438,2]
[334678043,1723465914687,652.54180538,0.00016438,2]
[334678046,1723466259231,167.055275,0.00014247,2]
[334678047,1723466352709,754.14366119,0.00014247,2]
[334678048,1723466401395,380.61155709,0.00014247,2]
[334678050,1723466551717,781.90483555,0.00014247,2]
[334678051,1723466671762,676.89516445,0.00014247,2]
[334678052,1723466713600,273.37336231,9.9e-05,2]
[334678053,1723466729682,273.37336231,9.9e-05,2]
[334678054,1723466746507,273.37336231,9.9e-05,2]
[334678055,1723466763062,273.37336231,9.9e-05,2]
[334678056,1723466765707,164.600219,0.00014247,2]
[334678057,1723466776867,154.76012181,0.00012,2]
[334678059,1723466779691,273.37336231,9.9e-05,2]
[334678060,1723466793164,482.1,0.00010959,2]
[334678061,1723466796464,273.37336231,9.9e-05,2]
[334678062,1723466799483,16392.54441331,0.00012,2]
[334678063,1723466802536,4715.91683501,0.00012,2]
[334678064,1723466802571,3604.70923389,0.00012,2]
[334678066,1723466805919,155.44509905,0.00012,2]
[334678067,1723466806529,19465.01870701,0.00012,2]
[334678068,1723466809880,218.51131528,0.00012,2]
[334678069,1723466812376,2108.95048088,0.00012,2]
[334678070,1723466827032,3611.12283265,0.00012,2]
[334678071,1723466834503,16299.16006293,0.00012,2]
[334678072,1723466838417,3785.86407866,0.00012,2]
[334678073,1723466841177,4709.61029425,0.00012,2]
[334678074,1723466851154,-300.0,0.00015931,2]
[334678075,1723466851186,-24900.0,0.00015932,2]
[334678076,1723466851215,-463.64893982,0.0001611,2]
[334678077,1723466851240,-3804.56657132,0.00016337,2]
[334678078,1723466851270,-1307.23644569,0.00016338,2]
[334678079,1723466851294,-432.94814159,0.00016338,2]
[334678080,1723466851323,-500.0,0.00016437,2]
[334678081,1723466851350,-500.0,0.00016437,2]
[334678082,1723466851377,-500.0,0.00016437,2]
[334678083,1723466851407,-500.0,0.00016437,2]
[334678084,1723466851433,-500.0,0.00016437,2]
[334678085,1723466851465,-487.5896732,0.00016437,2]
[334678086,1723466851490,-500.0,0.00016437,2]
[334678087,1723466851517,-500.0,0.00016437,2]
[334678088,1723466851542,-42043.73060565,0.00016438,2]
[334678089,1723466851569,-153.0,0.00016438,2]
[334678090,1723466851600,-153.0,0.00016438,2]
[334678091,1723466851625,-154.76012181,0.00017019,2]
[334678092,1723466851652,-1307.23644565,0.0001702,2]
[334678093,1723466851679,-250.0,0.00017401,2]
[334678094,1723466851707,-250.0,0.00017449,2]
[334678095,1723466851733,-250.0,0.00017497,2]
[334678096,1723466851760,-420.0,0.00017524,2]
[334678097,1723466851787,-250.0,0.00017544,2]
[334678098,1723466851813,-250.0,0.00017592,2]
[334678099,1723466851840,-250.0,0.0001764,2]
[334678100,1723466851865,-250.0,0.00017688,2]
[334678101,1723466851890,-1307.23644565,0.00017703,2]
[334678102,1723466851915,-3804.56657128,0.00017707,2]
[334678103,1723466851944,-250.0,0.00017735,2]
[334678104,1723466851970,-250.0,0.00017783,2]
[334678105,1723466851996,-250.0,0.00017831,2]
[334678106,1723466852026,-250.0,0.00017879,2]
[334678107,1723466852055,-250.0,0.00017926,2]
[334678108,1723466852083,-250.0,0.00017974,2]
[334678109,1723466852109,-245.09758384,0.00018,2]
[334678110,1723466852137,-250.0,0.00018022,2]
[334678111,1723466852163,-250.0,0.00018069,2]
[334678112,1723466852192,-250.0,0.00018117,2]
[334678113,1723466852220,-13438.68393439,0.00018125,2]
[334678115,1723466870881,218.2151025,0.00012,2]
[334678116,1723466931326,2400.07362037,0.00014545,2]
[334678117,1723466951138,-153.0,0.00016438,2]
[334678118,1723466951160,-153.0,0.00016438,2]
[334678119,1723466951183,-153.0,0.00016438,2]
[334678120,1723466957304,-45528.35641136,0.00017389,2]
[334678121,1723466957664,1191.39445333,0.00012,2]
[334678122,1723466957691,478.69737484,0.00012,2]
[334678123,1723466958738,834.21452004,0.00012,2]
[334678124,1723466966111,-560.65645478,0.00017389,2]
[334678125,1723466966357,520.57755902,0.00014545,2]
[334678126,1723466966389,225.3139075,0.00012,2]
[334678127,1723466971777,156.32171766,0.00012,2]
[334678128,1723466975050,155.3548721,0.00012,2]
[334678129,1723466992169,1629.80618072,0.00014545,2]
[334678130,1723466993348,174.81086157,0.00014545,2]
[334678131,1723467009481,250.41758139,0.00012,2]
[334678240,1723467038164,-55434.59759481,0.00016347,2]
[334678242,1723467038179,-300.0,0.00016395,2]
[334678243,1723467038190,-24900.0,0.00016396,2]
[334678244,1723467038200,-153.0,0.00016438,2]
[334678245,1723467038211,-250.0,0.00017358,2]
[334678246,1723467038222,-250.0,0.00017406,2]
[334678247,1723467038232,-250.0,0.00017453,2]
[334678248,1723467038242,-250.0,0.00017501,2]
[334678249,1723467038253,-250.0,0.00017549,2]
[334678250,1723467038264,-250.0,0.00017596,2]
[334678251,1723467038275,-250.0,0.00017644,2]
[334678252,1723467038285,-250.0,0.00017691,2]
[334678253,1723467038296,-250.0,0.00017739,2]
[334678254,1723467038308,-250.0,0.00017787,2]
[334678255,1723467038317,-250.0,0.00017834,2]
[334678256,1723467038328,-250.0,0.00017882,2]
[334678257,1723467038338,-250.0,0.0001793,2]
[334678258,1723467038349,-250.0,0.00017977,2]
[334678259,1723467038360,-250.0,0.00018025,2]
[334678260,1723467038370,-420.0,0.00018035,2]
[334678261,1723467038380,-250.0,0.00018072,2]
[334678262,1723467038390,-250.0,0.0001812,2]
[334678263,1723467038401,-250.0,0.00018168,2]
[334678264,1723467038410,-250.0,0.00018215,2]
[334678265,1723467038420,-250.0,0.00018263,2]
[334678266,1723467038430,-522.89457826,0.00018596,2]
[334678267,1723467038441,-500.0,0.00018658,2]
[334678268,1723467038451,-500.0,0.00018658,2]
[334678269,1723467038461,-291.31277124,0.00018658,2]
[334678270,1723467038471,-500.0,0.00018658,2]
[334678271,1723467038481,-500.0,0.00018658,2]
[334678272,1723467038492,-500.0,0.00018658,2]
[334678273,1723467038502,-49105.1954157,0.00018659,2]
[334678274,1723467038512,-522.89457826,0.00018667,2]
[334678275,1723467038522,-35044.64616853,0.00018679,2]
[334678276,1723467038533,-150.112234,0.000187,2]
[334678277,1723467038544,-522.89457826,0.00018738,2]
[334678278,1723467038555,-850.02521278,0.00018786,2]
[334678279,1723467038565,-522.89457826,0.00018808,2]
[334678280,1723467038576,-5240.178669,0.00018845,2]
[334678281,1723467038586,-6401.98845439,0.00018845,2]
[334678282,1723467038596,-522.89457826,0.00018879,2]
[334678283,1723467038605,-2140.71420812,0.00018899,2]
[334678284,1723467038616,-568.97584151,0.00018899,2]
[334678285,1723467038626,-294.263457,0.00018904,2]
[334678286,1723467038637,-817.03180288,0.00018909,3]
[334678287,1723467038647,-210.04889723,0.0001891,2]
[334678288,1723467038656,-154.74467129,0.00018921,2]
[334678289,1723467038667,-154.74467129,0.00018921,2]
[334678290,1723467038676,-6064.37956195,0.00018921,2]
[334678291,1723467038686,-209.19959389,0.00018921,2]
[334678292,1723467038696,-1612.28857669,0.00018945,2]
[334678293,1723467038706,-9021.17649492,0.00018945,2]
[334678294,1723467038716,-269.65614473,0.00018945,7]
[334678295,1723467038727,-1810.26620909,0.00018945,3]
[334678296,1723467038737,-1612.28857669,0.00018945,2]
[334678297,1723467038747,-309.48934258,0.0001895,2]
[334678298,1723467038757,-472.28479668,0.0001895,2]
[334678299,1723467038768,-49105.1954157,0.00018959,2]
[334678300,1723467038777,-42383.12825852,0.00018969,2]
[334678301,1723467038788,-160.72812802,0.00018969,2]
[334678302,1723467038797,-49105.1954157,0.00018979,2]
[334678303,1723467038809,-16544.44461869,0.00018979,2]
[334678304,1723467038819,-49105.1954157,0.00018979,2]
[334678305,1723467038828,-157.9723884,0.00018989,2]
[334678306,1723467038838,-522.80309354,0.00018999,2]
[334678307,1723467038848,-324.4948299,0.00019041,2]
[334678308,1723467038858,-250.0,0.00019041,2]
[334678309,1723467038868,-3804.56657128,0.00019077,2]
[334678310,1723467038878,-933.09765316,0.00019102,2]
[334678311,1723467038889,-277.46411292,0.00019102,2]
[334678312,1723467038899,-277.46411292,0.00019102,2]
[334678313,1723467038909,-301.29579535,0.00019139,2]
[334678314,1723467038919,-1100.02589373,0.00019139,2]
[334678315,1723467038928,-98210.3908313,0.00019147,2]
[334678316,1723467038939,-343.02425125,0.00019167,2]
[334678317,1723467038949,-240.56996624,0.00019178,2]
[334678318,1723467038959,-161.959314,0.00019178,2]
[334678319,1723467038970,-240.81957697,0.00019256,2]
[334678320,1723467038980,-636.65531725,0.00019451,2]
[334678321,1723467038989,-150.112237,0.000195,2]
[334678322,1723467039000,-173.713303,0.0001951,2]
[334678323,1723467039013,-174.298995,0.0001951,2]
[334678324,1723467039023,-173.713303,0.0001951,2]
[334678325,1723467039033,-175.101493,0.0001951,2]
[334678326,1723467039042,-9652.40516915,0.00019547,2]
[334678327,1723467039053,-1952.29747641,0.00019715,2]
[334678328,1723467039066,-151.90208824,0.0001978,2]
[334678329,1723467039076,-150.112233,0.000198,2]
[334678330,1723467039086,-88888.0,0.00019804,2]
[334678331,1723467039096,-587.0,0.00019839,2]
[334678332,1723467039107,-5000.0,0.00019842,2]
[334678333,1723467039117,-155.17587331,0.00019999,2]
[334678334,1723467039126,-336.53868747,0.0002,2]
[334678335,1723467039139,-34082.63590581,0.0002,2]
[334678336,1723467039149,-5322.29976103,0.0002,2]
[334678337,1723467039159,-150.112233,0.0002,3]
[334678338,1723467039170,-500.0,0.0002,2]
[334678339,1723467039181,-2295.12425473,0.0002,14]
[334678340,1723467039191,-1393.14395153,0.0002,2]
[334678341,1723467039201,-435.0,0.0002,2]
[334678342,1723467039213,-188.20114955,0.0002,2]
[334678343,1723467039223,-297.29551716,0.0002,2]
[334678344,1723467039232,-153.5978301,0.0002,2]
[334678345,1723467039243,-153.5307806,0.00020078,2]
[334678346,1723467039253,-150.112233,0.000203,4]
[334678347,1723467039263,-153.0,0.00020411,2]
[334678348,1723467039273,-3804.56657128,0.00020447,2]
[334678349,1723467039282,-600.0,0.00020458,2]
[334678350,1723467039294,-173.713303,0.00020485,2]
[334678351,1723467039305,-175.101493,0.00020485,2]
[334678352,1723467039315,-248.98557296,0.00020547,7]
[334678353,1723467039325,-150.112233,0.000206,4]
[334678354,1723467039335,-1000.0,0.00020601,2]
[334678355,1723467039345,-1000.0,0.00020628,2]
[334678356,1723467039354,-1000.0,0.00020655,2]
[334678357,1723467039365,-600.0,0.00020671,2]
[334678358,1723467039375,-1000.0,0.00020683,2]
[334678359,1723467039385,-151.592,0.00020696,2]
[334678360,1723467039396,-508.0,0.00020696,2]
[334678361,1723467039406,-1413.0,0.00020696,2]
[334678362,1723467039416,-588.710544,0.000207,9]
[334678363,1723467039426,-1000.0,0.0002071,2]
[334678364,1723467039436,-1000.0,0.00020738,2]
[334678365,1723467039445,-1000.0,0.00020765,2]
[334678366,1723467039455,-1000.0,0.00020792,2]
[334678367,1723467039465,-2500.0,0.000208,2]
[334678368,1723467039475,-1000.0,0.0002082,2]
[334678369,1723467039486,-270.59468243,0.00020821,11]
[334678370,1723467039496,-151.0,0.00020821,2]
[334678371,1723467039506,-151.779904,0.00020821,2]
[334678372,1723467039516,-500.0,0.00020821,3]
[334678373,1723467039526,-193.92382,0.00020821,2]
[334678374,1723467039536,-193.92382,0.00020821,2]
[334678375,1723467039546,-151.0,0.00020821,2]
[334678376,1723467039557,-193.92382,0.00020821,2]
[334678377,1723467039567,-193.92382,0.00020821,2]
[334678378,1723467039576,-500.0,0.00020821,3]
[334678379,1723467039587,-151.0,0.00020821,2]
[334678380,1723467039596,-167.796544,0.00020821,2]
[334678381,1723467039606,-503.10663543,0.00020821,3]
[334678382,1723467039616,-503.23853271,0.00020821,3]
[334678383,1723467039626,-500.0,0.00020821,3]
[334678385,1723467039636,-505.58590369,0.00020821,3]
[334678387,1723467039647,-225.25171686,0.00020821,3]
[334678388,1723467039657,-744.34,0.00020821,3]
[334678389,1723467039667,-528.49685715,0.00020821,3]
[334678390,1723467039677,-500.0,0.00020821,3]
[334678391,1723467039688,-500.0,0.00020821,3]
[334678392,1723467039698,-908.63,0.00020821,3]
[334678393,1723467039709,-500.0,0.00020821,3]
[334678394,1723467039719,-500.0,0.00020821,3]
[334678395,1723467039729,-505.64252159,0.00020821,3]
[334678396,1723467039739,-500.0,0.00020821,3]
[334678397,1723467039750,-500.0,0.00020821,3]
[334678399,1723467039760,-500.0,0.00020821,3]
[334678400,1723467039770,-500.0,0.00020821,3]
[334678401,1723467039780,-500.0,0.00020821,3]
[334678402,1723467039790,-512.17168616,0.00020821,3]
[334678403,1723467039800,-500.0,0.00020821,3]
[334678404,1723467039812,-282.70644405,0.00020821,3]
[334678405,1723467039822,-500.0,0.00020821,3]
[334678406,1723467039831,-509.53757874,0.00020821,3]
[334678408,1723467039841,-279.59967043,0.00020821,3]
[334678410,1723467039851,-500.0,0.00020821,3]
[334678412,1723467039860,-504.51658871,0.00020821,3]
[334678413,1723467039869,-509.51777587,0.00020821,3]
[334678415,1723467039879,-505.37416633,0.00020821,3]
[334678417,1723467039890,-1210.07,0.00020821,3]
[334678419,1723467039900,-505.06170648,0.00020821,3]
[334678420,1723467039910,-502.41031601,0.00020821,3]
[334678421,1723467039920,-500.0,0.00020821,3]
[334678422,1723467039930,-500.0,0.00020821,3]
[334678423,1723467039940,-500.0,0.00020821,3]
[334678424,1723467039950,-500.0,0.00020821,3]
[334678425,1723467039960,-509.21040246,0.00020821,3]
[334678426,1723467039970,-500.0,0.00020821,3]
[334678427,1723467039980,-500.0,0.00020821,3]
[334678428,1723467039989,-544.83,0.00020821,3]
[334678429,1723467039999,-501.14172296,0.00020821,3]
[334678430,1723467040009,-500.0,0.00020821,3]
[334678432,1723467040019,-500.0,0.00020821,3]
[334678434,1723467040028,-500.0,0.00020821,3]
[334678436,1723467040039,-505.0,0.00020821,3]
[334678437,1723467040049,-500.0,0.00020821,3]
[334678438,1723467040063,-509.72787759,0.00020821,3]
[334678440,1723467040073,-507.77632743,0.00020821,3]
[334678441,1723467040083,-500.0,0.00020821,3]
[334678443,1723467040093,-502.30956681,0.00020821,3]
[334678445,1723467040102,-500.43605839,0.00020821,3]
[334678446,1723467040113,-506.51584812,0.00020821,3]
[334678447,1723467040125,-500.0,0.00020821,3]
[334678448,1723467040136,-500.0,0.00020821,3]
[334678449,1723467040148,-500.0,0.00020821,3]
[334678450,1723467040158,-503.16228762,0.00020821,3]
[334678451,1723467040167,-500.0,0.00020821,3]
[334678452,1723467040177,-500.0,0.00020821,3]
[334678453,1723467040186,-512.50635264,0.00020821,3]
[334678454,1723467040197,-500.0,0.00020821,3]
[334678455,1723467040207,-513.37383625,0.00020821,3]
[334678456,1723467040216,-505.0683132,0.00020821,3]
[334678457,1723467040226,-500.0,0.00020821,3]
[334678458,1723467040235,-500.0,0.00020821,3]
[334678459,1723467040245,-500.0,0.00020821,3]
[334678460,1723467040254,-500.0,0.00020821,3]
[334678461,1723467040264,-500.0,0.00020821,3]
[334678462,1723467040274,-500.0,0.00020821,3]
[334678463,1723467040284,-500.0,0.00020821,3]
[334678464,1723467040294,-500.0,0.00020821,3]
[334678465,1723467040304,-500.0,0.00020821,3]
[334678466,1723467040314,-1310.03,0.00020821,3]
[334678467,1723467040323,-502.21590744,0.00020821,3]
[334678468,1723467040333,-500.0,0.00020821,3]
[334678469,1723467040342,-502.06461699,0.00020821,3]
[334678470,1723467040352,-500.0,0.00020821,3]
[334678471,1723467040362,-505.38117355,0.00020821,3]
[334678472,1723467040371,-503.16277501,0.00020821,3]
[334678473,1723467040381,-431.89999871,0.00020821,3]
[334678474,1723467040390,-500.0,0.00020821,3]
[334678475,1723467040400,-500.0,0.00020821,3]
[334678476,1723467040410,-518.52850845,0.00020821,3]
[334678477,1723467040419,-651.58,0.00020821,3]
[334678478,1723467040429,-647.09165506,0.00020821,3]
[334678479,1723467040438,-500.0,0.00020821,3]
[334678480,1723467040448,-500.0,0.00020821,3]
[334678481,1723467040457,-500.0,0.00020821,3]
[334678482,1723467040466,-500.0,0.00020821,3]
[334678483,1723467040476,-500.0,0.00020821,3]
[334678484,1723467040485,-502.07461869,0.00020821,3]
[334678485,1723467040495,-500.0,0.00020821,3]
[334678486,1723467040505,-500.0,0.00020821,3]
[334678487,1723467040515,-506.07076068,0.00020821,3]
[334678488,1723467040525,-610.77,0.00020821,3]
[334678489,1723467040534,-838.84,0.00020821,3]
[334678490,1723467040545,-151.0,0.00020821,2]
[334678491,1723467040557,-509.00972088,0.00020821,3]
[334678492,1723467040566,-500.0,0.00020821,3]
[334678493,1723467040575,-500.0,0.00020821,3]
[334678494,1723467040586,-151.0,0.00020821,2]
[334678495,1723467040596,-500.0,0.00020821,2]
[334678496,1723467040606,-500.0,0.00020821,3]
[334678497,1723467040615,-500.0,0.00020821,3]
[334678498,1723467040625,-151.72358,0.00020821,2]
[334678499,1723467040634,-500.0,0.00020821,3]
[334678500,1723467040644,-500.0,0.00020821,3]
[334678501,1723467040654,-500.0,0.00020821,3]
[334678502,1723467040664,-500.0,0.00020821,3]
[334678503,1723467040674,-500.0,0.00020821,3]
[334678504,1723467040684,-500.0,0.00020821,3]
[334678505,1723467040694,-500.0,0.00020821,3]
[334678506,1723467040704,-500.0,0.00020821,3]
[334678507,1723467040713,-297.51445606,0.00020821,3]
[334678508,1723467040723,-500.0,0.00020821,3]
[334678509,1723467040733,-500.0,0.00020821,3]
[334678510,1723467040742,-629.27268015,0.00020821,3]
[334678511,1723467040751,-500.0,0.00020821,3]
[334678512,1723467040761,-500.0,0.00020821,3]
[334678513,1723467040771,-500.0,0.00020821,3]
[334678514,1723467040781,-506.35734936,0.00020821,3]
[334678515,1723467040791,-200.67872286,0.00020821,3]
[334678516,1723467040800,-500.0,0.00020821,3]
[334678517,1723467040811,-500.0,0.00020821,3]
[334678518,1723467040982,-500.0,0.00020821,3]
[334678519,1723467040992,-500.0,0.00020821,3]
[334678520,1723467041002,-500.0,0.00020821,3]
[334678521,1723467041011,-1542.61,0.00020821,3]
[334678522,1723467041020,-500.0,0.00020821,3]
[334678523,1723467041030,-500.0,0.00020821,3]
[334678524,1723467041039,-500.0,0.00020821,3]
[334678525,1723467041048,-500.0,0.00020821,3]
[334678526,1723467041062,-500.0,0.00020821,3]
[334678527,1723467041071,-500.0,0.00020821,3]
[334678528,1723467041081,-500.0,0.00020821,3]
[334678529,1723467041090,-500.0,0.00020821,3]
[334678530,1723467041099,-555.00322272,0.00020821,3]
[334678531,1723467041110,-500.0,0.00020821,3]
[334678532,1723467041120,-500.0,0.00020821,3]
[334678533,1723467041131,-500.0,0.00020821,3]
[334678534,1723467041140,-500.0,0.00020821,3]
[334678535,1723467041150,-500.0,0.00020821,3]
[334678536,1723467041160,-500.0,0.00020821,3]
[334678537,1723467041170,-500.0,0.00020821,3]
[334678538,1723467041180,-501.49390567,0.00020821,3]
[334678539,1723467041189,-1048.76,0.00020821,3]
[334678540,1723467041199,-500.0,0.00020821,3]
[334678541,1723467041209,-500.0,0.00020821,3]
[334678542,1723467041218,-325.65215929,0.00020821,3]
[334678543,1723467041228,-500.0,0.00020821,3]
[334678544,1723467041238,-500.0,0.00020821,3]
[334678545,1723467041248,-500.0,0.00020821,3]
[334678546,1723467041258,-500.0,0.00020821,3]
[334678547,1723467041268,-1028.53,0.00020821,3]
[334678548,1723467041278,-500.80828887,0.00020821,3]
[334678549,1723467041287,-502.03387557,0.00020821,3]
[334678550,1723467041297,-500.0,0.00020821,3]
[334678551,1723467041308,-500.0,0.00020821,3]
[334678552,1723467041319,-500.0,0.00020821,3]
[334678553,1723467041329,-500.0,0.00020821,3]
[334678554,1723467041339,-500.0,0.00020821,3]
[334678555,1723467041349,-500.0,0.00020821,3]
[334678556,1723467041359,-500.0,0.00020821,3]
[334678557,1723467041370,-500.0,0.00020821,3]
[334678558,1723467041380,-500.0,0.00020821,3]
[334678559,1723467041389,-535.90743817,0.00020821,3]
[334678560,1723467041399,-500.0,0.00020821,3]
[334678561,1723467041409,-500.0,0.00020821,3]
[334678562,1723467041418,-500.0,0.00020821,3]
[334678563,1723467041429,-501.90565031,0.00020821,3]
[334678564,1723467041442,-500.0,0.00020821,3]
[334678565,1723467041451,-500.0,0.00020821,3]
[334678566,1723467041463,-500.0,0.00020821,3]
[334678567,1723467041473,-500.0,0.00020821,2]
[334678568,1723467041482,-500.0,0.00020821,3]
[334678569,1723467041491,-500.0,0.00020821,3]
[334678570,1723467041501,-500.0,0.00020821,3]
[334678571,1723467041511,-1332.86,0.00020821,3]
[334678572,1723467041521,-153.098448,0.00020821,2]
[334678573,1723467041531,-500.0,0.00020821,3]
[334678574,1723467041540,-500.0,0.00020821,3]
[334678575,1723467041549,-151.0,0.00020821,2]
[334678576,1723467041561,-500.0,0.00020821,3]
[334678577,1723467041571,-500.0,0.00020821,3]
[334678578,1723467041581,-500.0,0.00020821,3]
[334678579,1723467041591,-500.0,0.00020821,3]
[334678580,1723467041601,-500.0,0.00020821,3]
[334678581,1723467041611,-500.0,0.00020821,3]
[334678582,1723467041620,-151.0,0.00020821,2]
[334678583,1723467041630,-500.0,0.00020821,3]
[334678584,1723467041640,-500.0,0.00020821,3]
[334678585,1723467041650,-512.19781729,0.00020821,3]
[334678586,1723467041659,-500.0,0.00020821,3]
[334678587,1723467041669,-500.0,0.00020821,3]
[334678588,1723467041678,-500.0,0.00020821,3]
[334678589,1723467041688,-500.0,0.00020821,3]
[334678590,1723467041698,-500.0,0.00020821,3]
[334678591,1723467041707,-500.0,0.00020821,3]
[334678592,1723467041717,-500.0,0.00020821,3]
[334678593,1723467041727,-500.0,0.00020821,3]
[334678594,1723467041737,-500.0,0.00020821,3]
[334678595,1723467041746,-518.31538582,0.00020821,3]
[334678596,1723467041755,-500.0,0.00020821,3]
[334678597,1723467041765,-500.0,0.00020821,3]
[334678598,1723467041775,-211.129032,0.00020821,2]
[334678599,1723467041784,-211.129032,0.00020821,2]
[334678600,1723467041794,-814.4,0.00020821,3]
[334678601,1723467041804,-211.129032,0.00020821,2]
[334678602,1723467041813,-211.129032,0.00020821,2]
[334678603,1723467041824,-500.0,0.00020821,3]
[334678604,1723467041833,-500.0,0.00020821,3]
[334678605,1723467041843,-507.01067187,0.00020821,3]
[334678606,1723467041853,-961.15,0.00020821,3]
[334678607,1723467041863,-500.0,0.00020821,3]
[334678608,1723467041872,-500.0,0.00020821,3]
[334678609,1723467041882,-500.0,0.00020821,3]
[334678610,1723467041892,-500.0,0.00020821,3]
[334678611,1723467041902,-500.0,0.00020821,3]
[334678612,1723467041912,-500.0,0.00020821,3]
[334678613,1723467041921,-500.0,0.00020821,3]
[334678614,1723467041934,-500.0,0.00020821,3]
[334678615,1723467041944,-500.0,0.00020821,3]
[334678616,1723467041954,-200.15609373,0.00020821,3]
[334678617,1723467041963,-500.0,0.00020821,3]
[334678618,1723467041973,-564.08093968,0.00020821,3]
[334678619,1723467041983,-1144.79,0.00020821,3]
[334678620,1723467041993,-500.0,0.00020821,3]
[334678621,1723467042003,-986.95,0.00020821,3]
[334678622,1723467042013,-151.0,0.00020821,2]
[334678623,1723467042023,-151.0,0.00020821,2]
[334678624,1723467042032,-405.2448557,0.00020821,3]
[334678625,1723467042043,-251.30475425,0.00020821,3]
[334678626,1723467042055,-500.0,0.00020821,3]
[334678627,1723467042068,-500.0,0.00020821,3]
[334678628,1723467042078,-500.0,0.00020821,3]
[334678629,1723467042087,-500.0,0.00020821,3]
[334678630,1723467042098,-987.98,0.00020821,3]
[334678631,1723467042107,-500.0,0.00020821,3]
[334678632,1723467042117,-500.0,0.00020821,3]
[334678633,1723467042127,-500.0,0.00020821,3]
[334678634,1723467042139,-500.0,0.00020821,3]